[Event "Early-Titled-Tuesday-Blitz-July-09-2024"]
[Site "Chess.com"]
[Date "2024.07.09"]
[Round "4"]
[White "lildoggo2007"]
[Black "albi1999"]
[Result "1/2-1/2"]
[WhiteElo "2417"]
[BlackElo "2641"]
[TimeControl "180+1"]
[EndTime "8:40:33 PDT"]
[Termination "Game drawn by repetition"]

1. e4 {[%clk 0:03:00.9]} 1... c5 {[%clk 0:02:56]} 2. Nc3 {[%clk 0:03:01]} 2...
a6 {[%clk 0:02:55]} 3. Nge2 {[%clk 0:02:59]} 3... b5 {[%clk 0:02:54.3]} 4. g3
{[%clk 0:02:53.2]} 4... Bb7 {[%clk 0:02:54.1]} 5. Bg2 {[%clk 0:02:52.4]} 5...
Nf6 {[%clk 0:02:54.7]} 6. d3 {[%clk 0:02:50.1]} 6... e6 {[%clk 0:02:55.2]} 7.
O-O {[%clk 0:02:49.9]} 7... d5 {[%clk 0:02:50.7]} 8. e5 {[%clk 0:02:47]} 8...
Nfd7 {[%clk 0:02:51.2]} 9. f4 {[%clk 0:02:46.5]} 9... Nc6 {[%clk 0:02:50.3]} 10.
a4 {[%clk 0:02:39.3]} 10... b4 {[%clk 0:02:48.1]} 11. Nb1 {[%clk 0:02:38.9]}
11... Be7 {[%clk 0:02:45.4]} 12. Be3 {[%clk 0:02:26.9]} 12... f5 {[%clk
0:02:41.6]} 13. c3 {[%clk 0:02:17.5]} 13... O-O {[%clk 0:02:37.8]} 14. Nd2
{[%clk 0:02:14.7]} 14... a5 {[%clk 0:02:36.6]} 15. Rc1 {[%clk 0:02:05.5]} 15...
Rc8 {[%clk 0:02:34.5]} 16. cxb4 {[%clk 0:02:03.1]} 16... Nxb4 {[%clk 0:02:33.3]}
17. Nf3 {[%clk 0:01:51.7]} 17... d4 {[%clk 0:02:16.3]} 18. Bf2 {[%clk
0:01:44.8]} 18... Ba6 {[%clk 0:02:15.7]} 19. Ne1 {[%clk 0:01:43.9]} 19... Nb6
{[%clk 0:02:09.2]} 20. Qb3 {[%clk 0:01:39.6]} 20... Qd7 {[%clk 0:01:57.7]} 21.
h3 {[%clk 0:01:20.4]} 21... c4 {[%clk 0:01:41.1]} 22. dxc4 {[%clk 0:01:20.4]}
22... Nxc4 {[%clk 0:01:42]} 23. Qd1 {[%clk 0:01:01.6]} 23... Nxb2 {[%clk
0:01:32.9]} 24. Qxd4 {[%clk 0:00:49.8]} 24... Qxd4 {[%clk 0:01:28.9]} 25. Bxd4
{[%clk 0:00:47.8]} 25... Bxe2 {[%clk 0:01:18.7]} 26. Rxc8 {[%clk 0:00:46.3]}
26... Rxc8 {[%clk 0:01:19.6]} 27. Rf2 {[%clk 0:00:46.5]} 27... Rc1 {[%clk
0:01:06.8]} 28. Rxe2 {[%clk 0:00:41.8]} 28... N2d3 {[%clk 0:01:06]} 29. Bf2
{[%clk 0:00:33]} 29... Nxf2 {[%clk 0:00:37.2]} 30. Kxf2 {[%clk 0:00:32.6]} 30...
Bc5+ {[%clk 0:00:37.3]} 31. Kf1 {[%clk 0:00:33.3]} 31... Kf8 {[%clk 0:00:22.2]}
32. Bf3 {[%clk 0:00:22.4]} 32... Ke7 {[%clk 0:00:20.4]} 33. Kg2 {[%clk
0:00:22.8]} 33... h6 {[%clk 0:00:19.3]} 34. g4 {[%clk 0:00:22.9]} 34... g6
{[%clk 0:00:18.2]} 35. h4 {[%clk 0:00:17.8]} 35... fxg4 {[%clk 0:00:16.3]} 36.
Bxg4 {[%clk 0:00:18]} 36... Rc4 {[%clk 0:00:15.9]} 37. Kg3 {[%clk 0:00:16.7]}
37... Rc3+ {[%clk 0:00:15.6]} 38. Bf3 {[%clk 0:00:16.7]} 38... Nc6 {[%clk
0:00:12.7]} 39. Rc2 {[%clk 0:00:16.6]} 39... Rxc2 {[%clk 0:00:09.9]} 40. Nxc2
{[%clk 0:00:17.5]} 40... Nb8 {[%clk 0:00:05.6]} 41. h5 {[%clk 0:00:17]} 41...
gxh5 {[%clk 0:00:05.7]} 42. Bxh5 {[%clk 0:00:17.1]} 42... Nd7 {[%clk 0:00:06.3]}
43. Be2 {[%clk 0:00:16.7]} 43... Nb6 {[%clk 0:00:06.5]} 44. Bb5 {[%clk
0:00:17.1]} 44... Kf7 {[%clk 0:00:07]} 45. Ne1 {[%clk 0:00:17.4]} 45... Kg6
{[%clk 0:00:06.6]} 46. Nf3 {[%clk 0:00:17.3]} 46... Kf5 {[%clk 0:00:05]} 47.
Nh4+ {[%clk 0:00:17.6]} 47... Ke4 {[%clk 0:00:05]} 48. Ng6 {[%clk 0:00:18]}
48... Ke3 {[%clk 0:00:03.1]} 49. Kg4 {[%clk 0:00:18.3]} 49... Bb4 {[%clk
0:00:02.2]} 50. f5 {[%clk 0:00:18.3]} 50... exf5+ {[%clk 0:00:02.2]} 51. Kxf5
{[%clk 0:00:19.2]} 51... Kd4 {[%clk 0:00:03]} 52. e6 {[%clk 0:00:19.7]} 52...
Nd5 {[%clk 0:00:03.2]} 53. Bc6 {[%clk 0:00:19.1]} 53... Ne7+ {[%clk 0:00:03]}
54. Nxe7 {[%clk 0:00:18.8]} 54... Bxe7 {[%clk 0:00:03.9]} 55. Kg6 {[%clk
0:00:19.5]} 55... Kc5 {[%clk 0:00:04.3]} 56. Bb5 {[%clk 0:00:19.4]} 56... Kd6
{[%clk 0:00:04.4]} 57. Bd7 {[%clk 0:00:19.8]} 57... Bf8 {[%clk 0:00:04.1]} 58.
Kf7 {[%clk 0:00:19.4]} 58... Be7 {[%clk 0:00:04.6]} 59. Kg6 {[%clk 0:00:18.9]}
59... Bf8 {[%clk 0:00:05]} 60. Kh5 {[%clk 0:00:19.2]} 60... Ke7 {[%clk
0:00:05.1]} 61. Kg6 {[%clk 0:00:19.3]} 61... Kd6 {[%clk 0:00:05.7]} 1/2-1/2

[Event "Early-Titled-Tuesday-Blitz-July-09-2024"]
[Site "Chess.com"]
[Date "2024.07.09"]
[Round "4"]
[White "anderson2361"]
[Black "WPWPWP-2015"]
[Result "1-0"]
[WhiteElo "2117"]
[BlackElo "2530"]
[TimeControl "180+1"]
[EndTime "8:40:33 PDT"]
[Termination "anderson2361 won by checkmate"]

1. c4 {[%clk 0:03:00.9]} 1... c5 {[%clk 0:02:58.5]} 2. Nf3 {[%clk 0:02:59.7]}
2... d6 {[%clk 0:02:58.3]} 3. Nc3 {[%clk 0:02:59.2]} 3... Nf6 {[%clk 0:02:58.3]}
4. d4 {[%clk 0:02:57.7]} 4... cxd4 {[%clk 0:02:57.7]} 5. Nxd4 {[%clk 0:02:58.1]}
5... g6 {[%clk 0:02:57.8]} 6. g3 {[%clk 0:02:56.1]} 6... Bg7 {[%clk 0:02:57.5]}
7. Bg2 {[%clk 0:02:55.9]} 7... O-O {[%clk 0:02:57.6]} 8. O-O {[%clk 0:02:56.3]}
8... Qb6 {[%clk 0:02:56.8]} 9. Nb3 {[%clk 0:02:53.2]} 9... Nc6 {[%clk
0:02:55.7]} 10. e4 {[%clk 0:02:51.2]} 10... Ne5 {[%clk 0:02:51.4]} 11. Qe2
{[%clk 0:02:41.7]} 11... a6 {[%clk 0:02:19.9]} 12. Bf4 {[%clk 0:02:30]} 12...
Be6 {[%clk 0:02:18.1]} 13. c5 {[%clk 0:02:28.7]} 13... Qc7 {[%clk 0:02:10.4]}
14. cxd6 {[%clk 0:02:27.4]} 14... exd6 {[%clk 0:02:10.7]} 15. Rfd1 {[%clk
0:02:23.1]} 15... Rad8 {[%clk 0:01:55.6]} 16. Rac1 {[%clk 0:02:18.8]} 16... Qb8
{[%clk 0:01:54]} 17. h3 {[%clk 0:02:11.7]} 17... Rfe8 {[%clk 0:01:51.8]} 18. Nd4
{[%clk 0:02:00.9]} 18... Bc4 {[%clk 0:01:49.3]} 19. Qe3 {[%clk 0:01:58.8]} 19...
Nh5 {[%clk 0:01:39.7]} 20. b3 {[%clk 0:01:54.8]} 20... Be6 {[%clk 0:01:36.2]}
21. Nxe6 {[%clk 0:01:53.6]} 21... fxe6 {[%clk 0:01:33.6]} 22. Bg5 {[%clk
0:01:52.2]} 22... Rc8 {[%clk 0:01:32.3]} 23. g4 {[%clk 0:01:34.2]} 23... Nf6
{[%clk 0:01:15.1]} 24. Bf4 {[%clk 0:01:30.2]} 24... Rc6 {[%clk 0:01:11.1]} 25.
Bg3 {[%clk 0:01:27.9]} 25... Rec8 {[%clk 0:01:10.2]} 26. f4 {[%clk 0:01:27]}
26... Nf7 {[%clk 0:00:21.7]} 27. e5 {[%clk 0:01:25.4]} 27... dxe5 {[%clk
0:00:18]} 28. Bxc6 {[%clk 0:01:24.9]} 28... Rxc6 {[%clk 0:00:17]} 29. fxe5
{[%clk 0:01:20.3]} 29... Ne8 {[%clk 0:00:16.7]} 30. Re1 {[%clk 0:01:08.2]} 30...
Qc7 {[%clk 0:00:16.1]} 31. Na4 {[%clk 0:00:58.2]} 31... Bh6 {[%clk 0:00:14.2]}
32. Bf4 {[%clk 0:00:57.6]} 32... Bf8 {[%clk 0:00:12.2]} 33. Rxc6 {[%clk
0:00:55.1]} 33... Qxc6 {[%clk 0:00:13.1]} 34. Qe4 {[%clk 0:00:53]} 34... Qd7
{[%clk 0:00:12.9]} 35. Nb6 {[%clk 0:00:49.9]} 35... Qc7 {[%clk 0:00:11.5]} 36.
Nc4 {[%clk 0:00:49.8]} 36... Bc5+ {[%clk 0:00:09.6]} 37. Kh1 {[%clk 0:00:50.1]}
37... Qe7 {[%clk 0:00:09]} 38. Bg3 {[%clk 0:00:46]} 38... Ng5 {[%clk 0:00:07.6]}
39. Qg2 {[%clk 0:00:45.3]} 39... b5 {[%clk 0:00:06.9]} 40. Nb2 {[%clk
0:00:43.1]} 40... Nf7 {[%clk 0:00:07]} 41. Nd3 {[%clk 0:00:43.1]} 41... Bb6
{[%clk 0:00:04.5]} 42. Rc1 {[%clk 0:00:42.2]} 42... Qd7 {[%clk 0:00:04]} 43. Qe2
{[%clk 0:00:38.1]} 43... Kf8 {[%clk 0:00:03.7]} 44. Qf3 {[%clk 0:00:33.3]} 44...
Kg7 {[%clk 0:00:02.6]} 45. h4 {[%clk 0:00:32.8]} 45... Nc7 {[%clk 0:00:02.7]}
46. Rc6 {[%clk 0:00:31.3]} 46... Nd5 {[%clk 0:00:02.5]} 47. Rc2 {[%clk
0:00:26.9]} 47... Bd8 {[%clk 0:00:02.6]} 48. Nc5 {[%clk 0:00:26.3]} 48... Qe8
{[%clk 0:00:02.4]} 49. Rd2 {[%clk 0:00:24.8]} 49... h6 {[%clk 0:00:02.2]} 50.
Rxd5 {[%clk 0:00:21.6]} 50... exd5 {[%clk 0:00:02.2]} 51. e6 {[%clk 0:00:22.2]}
51... Nh8 {[%clk 0:00:01.3]} 52. Be5+ {[%clk 0:00:22.4]} 52... Kg8 {[%clk
0:00:01.7]} 53. Qxd5 {[%clk 0:00:22.8]} 53... Qe7 {[%clk 0:00:01.2]} 54. Kg2
{[%clk 0:00:20]} 54... Qxh4 {[%clk 0:00:01.3]} 55. e7+ {[%clk 0:00:20.1]} 55...
Kh7 {[%clk 0:00:01.5]} 56. exd8=Q {[%clk 0:00:19.9]} 56... Qxg4+ {[%clk
0:00:02]} 57. Kf2 {[%clk 0:00:18.7]} 57... Qh4+ {[%clk 0:00:02.2]} 58. Bg3
{[%clk 0:00:18.1]} 58... Qxd8 {[%clk 0:00:01.3]} 59. Qxd8 {[%clk 0:00:18.7]}
59... Nf7 {[%clk 0:00:01.9]} 60. Qe7 {[%clk 0:00:19.2]} 60... Kg7 {[%clk
0:00:02]} 61. Ne6+ {[%clk 0:00:19.6]} 61... Kg8 {[%clk 0:00:01.8]} 62. Qf8+
{[%clk 0:00:19.7]} 62... Kh7 {[%clk 0:00:02.4]} 63. Qg7# {[%clk 0:00:20.6]} 1-0

[Event "Early-Titled-Tuesday-Blitz-July-09-2024"]
[Site "Chess.com"]
[Date "2024.07.09"]
[Round "4"]
[White "marvinguevara"]
[Black "neistoviupryam"]
[Result "0-1"]
[WhiteElo "2038"]
[BlackElo "2330"]
[TimeControl "180+1"]
[EndTime "8:40:33 PDT"]
[Termination "neistoviupryam won on time"]

1. e4 {[%clk 0:03:00.9]} 1... e5 {[%clk 0:02:59.4]} 2. Nf3 {[%clk 0:03:01.1]}
2... Nc6 {[%clk 0:02:59.2]} 3. Bc4 {[%clk 0:03:01.1]} 3... Nf6 {[%clk
0:02:58.8]} 4. d3 {[%clk 0:03:00.2]} 4... Bc5 {[%clk 0:02:58.2]} 5. c3 {[%clk
0:03:00]} 5... d6 {[%clk 0:02:57.7]} 6. Nbd2 {[%clk 0:02:59.5]} 6... Ng4 {[%clk
0:02:55.4]} 7. O-O {[%clk 0:02:58.4]} 7... Bb6 {[%clk 0:02:53.3]} 8. a4 {[%clk
0:02:57.1]} 8... a5 {[%clk 0:02:52.1]} 9. h3 {[%clk 0:02:45.5]} 9... Nf6 {[%clk
0:02:52]} 10. Re1 {[%clk 0:02:45.3]} 10... h6 {[%clk 0:02:51.9]} 11. Nf1 {[%clk
0:02:41.2]} 11... g5 {[%clk 0:02:51.7]} 12. d4 {[%clk 0:02:38.3]} 12... g4
{[%clk 0:02:51.1]} 13. hxg4 {[%clk 0:02:08.6]} 13... Bxg4 {[%clk 0:02:48.7]} 14.
N1h2 {[%clk 0:02:04.7]} 14... Bh5 {[%clk 0:02:46.3]} 15. Qb3 {[%clk 0:01:53.2]}
15... Qe7 {[%clk 0:02:43.2]} 16. dxe5 {[%clk 0:01:51.7]} 16... Nxe5 {[%clk
0:02:21.3]} 17. Qb5+ {[%clk 0:01:30.5]} 17... Ned7 {[%clk 0:02:02.1]} 18. Nd4
{[%clk 0:01:22]} 18... Bxd4 {[%clk 0:01:45]} 19. cxd4 {[%clk 0:01:13.2]} 19...
Ng4 {[%clk 0:01:14.4]} 20. Nxg4 {[%clk 0:01:02.4]} 20... Bxg4 {[%clk 0:01:13.6]}
21. Qxb7 {[%clk 0:01:00.8]} 21... Rb8 {[%clk 0:01:12.8]} 22. Qa7 {[%clk
0:00:54.4]} 22... Rg8 {[%clk 0:01:08.5]} 23. Bb5 {[%clk 0:00:40.3]} 23... Rd8
{[%clk 0:00:54.5]} 24. Qxc7 {[%clk 0:00:32.4]} 24... Bh3 {[%clk 0:00:48.8]} 25.
g3 {[%clk 0:00:25.2]} 25... h5 {[%clk 0:00:48.6]} 26. e5 {[%clk 0:00:20.4]}
26... d5 {[%clk 0:00:47.3]} 27. Bf4 {[%clk 0:00:15.3]} 27... h4 {[%clk
0:00:45.5]} 28. e6 {[%clk 0:00:14.9]} 28... fxe6 {[%clk 0:00:44.2]} 29. Bd6
{[%clk 0:00:11.7]} 29... Qf7 {[%clk 0:00:40.8]} 30. Bxd7+ {[%clk 0:00:11]} 30...
Qxd7 {[%clk 0:00:35]} 31. Qxd7+ {[%clk 0:00:10.3]} 31... Kxd7 {[%clk 0:00:35]}
32. Bf4 {[%clk 0:00:10.1]} 32... Rc8 {[%clk 0:00:32.6]} 33. Rac1 {[%clk
0:00:09.4]} 33... hxg3 {[%clk 0:00:29.7]} 34. fxg3 {[%clk 0:00:08.9]} 34... Bf5
{[%clk 0:00:28.2]} 35. Kf2 {[%clk 0:00:03.9]} 35... Bc2 {[%clk 0:00:26.3]} 36.
Re2 {[%clk 0:00:02]} 36... Bxa4 {[%clk 0:00:25]} 37. Ra1 {[%clk 0:00:01]} 37...
Bb5 {[%clk 0:00:23.3]} 38. Rd2 {[%clk 0:00:01.4]} 38... a4 {[%clk 0:00:23]} 39.
Ra3 {[%clk 0:00:01.6]} 39... Rc4 {[%clk 0:00:21.3]} 40. Ra1 {[%clk 0:00:02]}
40... Rgc8 {[%clk 0:00:20.8]} 41. Re2 {[%clk 0:00:02]} 41... Rxd4 {[%clk
0:00:20.3]} 42. Rd2 {[%clk 0:00:01.4]} 42... Rxd2+ {[%clk 0:00:20.1]} 43. Bxd2
{[%clk 0:00:02.3]} 43... Rc2 {[%clk 0:00:19.8]} 44. Ke3 {[%clk 0:00:03.2]} 44...
e5 {[%clk 0:00:19.1]} 45. Bc3 {[%clk 0:00:02.5]} 45... d4+ {[%clk 0:00:18.9]}
46. Bxd4 {[%clk 0:00:02.9]} 46... exd4+ {[%clk 0:00:19.3]} 47. Kxd4 {[%clk
0:00:03.8]} 47... Rxb2 {[%clk 0:00:19.2]} 48. Ke4 {[%clk 0:00:04]} 48... Kc6
{[%clk 0:00:17.6]} 49. Kf4 {[%clk 0:00:04]} 49... Kc5 {[%clk 0:00:17.7]} 50. g4
{[%clk 0:00:04.9]} 50... Kb4 {[%clk 0:00:17.7]} 51. g5 {[%clk 0:00:05.6]} 51...
Bd3 {[%clk 0:00:17.6]} 52. Rd1 {[%clk 0:00:04.7]} 52... Bc2 {[%clk 0:00:16.5]}
53. Re1 {[%clk 0:00:04.2]} 53... a3 {[%clk 0:00:16.6]} 54. Re8 {[%clk
0:00:04.1]} 54... a2 {[%clk 0:00:16.3]} 55. Rb8+ {[%clk 0:00:04.1]} 55... Kc3
{[%clk 0:00:16]} 56. Rc8+ {[%clk 0:00:04.1]} 56... Kd2 {[%clk 0:00:15]} 57. Rd8+
{[%clk 0:00:04.1]} 57... Kc1 {[%clk 0:00:14.9]} 58. Ra8 {[%clk 0:00:04.1]} 58...
Kb1 {[%clk 0:00:14.6]} 59. g6 {[%clk 0:00:02.6]} 59... Bxg6 {[%clk 0:00:13.9]}
60. Kg5 {[%clk 0:00:02.1]} 60... Bc2 {[%clk 0:00:13.7]} 0-1

[Event "Early-Titled-Tuesday-Blitz-July-09-2024"]
[Site "Chess.com"]
[Date "2024.07.09"]
[Round "4"]
[White "BeanScreen"]
[Black "gmpeter008"]
[Result "1/2-1/2"]
[WhiteElo "2676"]
[BlackElo "2456"]
[TimeControl "180+1"]
[EndTime "8:40:35 PDT"]
[Termination "Game drawn by repetition"]

1. e4 {[%clk 0:02:58.5]} 1... e5 {[%clk 0:02:59.5]} 2. Nf3 {[%clk 0:02:58.3]}
2... Nc6 {[%clk 0:02:59.7]} 3. Bc4 {[%clk 0:02:58.5]} 3... Nf6 {[%clk
0:02:56.2]} 4. d3 {[%clk 0:02:58.5]} 4... Bc5 {[%clk 0:02:51.3]} 5. c3 {[%clk
0:02:58.4]} 5... O-O {[%clk 0:02:49.8]} 6. O-O {[%clk 0:02:58.7]} 6... d6 {[%clk
0:02:48.2]} 7. Re1 {[%clk 0:02:57.1]} 7... a5 {[%clk 0:02:44.4]} 8. Bb5 {[%clk
0:02:56.2]} 8... Ne7 {[%clk 0:02:31.3]} 9. d4 {[%clk 0:02:54.4]} 9... Bb6 {[%clk
0:02:23.5]} 10. Bg5 {[%clk 0:02:35]} 10... Ng6 {[%clk 0:02:23]} 11. dxe5 {[%clk
0:02:34.1]} 11... Nxe5 {[%clk 0:02:16.6]} 12. Nxe5 {[%clk 0:02:34.4]} 12... dxe5
{[%clk 0:02:17.5]} 13. Qxd8 {[%clk 0:02:34.1]} 13... Rxd8 {[%clk 0:02:18.4]} 14.
Bxf6 {[%clk 0:02:33.8]} 14... gxf6 {[%clk 0:02:18.2]} 15. Na3 {[%clk 0:02:26.3]}
15... Rd2 {[%clk 0:02:16.7]} 16. Re2 {[%clk 0:02:26.5]} 16... Rxe2 {[%clk
0:02:14.4]} 17. Bxe2 {[%clk 0:02:27.4]} 17... Be6 {[%clk 0:02:06]} 18. Rd1
{[%clk 0:01:46.5]} 18... Bxa2 {[%clk 0:01:45.9]} 19. Nc4 {[%clk 0:01:40.7]}
19... a4 {[%clk 0:01:38.8]} 20. Nxb6 {[%clk 0:01:21.5]} 20... cxb6 {[%clk
0:01:38.2]} 21. Rd6 {[%clk 0:00:49.1]} 21... a3 {[%clk 0:01:34.3]} 22. Rxb6
{[%clk 0:00:42.2]} 22... Bb1 {[%clk 0:01:17.2]} 23. bxa3 {[%clk 0:00:40.8]}
23... Bxe4 {[%clk 0:01:16.4]} 24. Bf3 {[%clk 0:00:30.9]} 24... Bxf3 {[%clk
0:01:02.2]} 25. gxf3 {[%clk 0:00:31.8]} 25... Rxa3 {[%clk 0:00:56]} 26. Rxb7
{[%clk 0:00:31.8]} 26... Rxc3 {[%clk 0:00:55]} 27. Kg2 {[%clk 0:00:32.3]} 27...
Kg7 {[%clk 0:00:55]} 28. Rb4 {[%clk 0:00:29.8]} 28... Rc8 {[%clk 0:00:49.8]} 29.
Rb6 {[%clk 0:00:27.7]} 29... Kg6 {[%clk 0:00:48.4]} 30. Kg3 {[%clk 0:00:26.6]}
30... Kf5 {[%clk 0:00:47.3]} 31. f4 {[%clk 0:00:13.5]} 31... exf4+ {[%clk
0:00:32.9]} 32. Kg2 {[%clk 0:00:11.7]} 32... Rc3 {[%clk 0:00:31.3]} 33. h3
{[%clk 0:00:11.3]} 33... h5 {[%clk 0:00:27.9]} 34. Rb5+ {[%clk 0:00:10.2]} 34...
Kg6 {[%clk 0:00:28.2]} 35. Rb4 {[%clk 0:00:08.5]} 35... Kg5 {[%clk 0:00:26.4]}
36. Rb5+ {[%clk 0:00:08.8]} 36... f5 {[%clk 0:00:18.4]} 37. Rb7 {[%clk
0:00:08.9]} 37... Kh4 {[%clk 0:00:16]} 38. Rb4 {[%clk 0:00:09]} 38... Kg5 {[%clk
0:00:15.2]} 39. Rb7 {[%clk 0:00:09.6]} 39... Kg6 {[%clk 0:00:14.2]} 40. Rb6+
{[%clk 0:00:09.8]} 40... f6 {[%clk 0:00:14.1]} 41. Rb8 {[%clk 0:00:08.2]} 41...
Kg5 {[%clk 0:00:13.9]} 42. Rg8+ {[%clk 0:00:05.6]} 42... Kh4 {[%clk 0:00:14.1]}
43. Rg6 {[%clk 0:00:04.6]} 43... f3+ {[%clk 0:00:13.7]} 44. Kh2 {[%clk 0:00:03]}
44... Rc2 {[%clk 0:00:13.9]} 45. Rxf6 {[%clk 0:00:01.6]} 45... Rxf2+ {[%clk
0:00:13.4]} 46. Kg1 {[%clk 0:00:01.4]} 46... Rg2+ {[%clk 0:00:10.6]} 47. Kh1
{[%clk 0:00:01.5]} 47... Rg3 {[%clk 0:00:09.4]} 48. Rxf5 {[%clk 0:00:01.1]}
48... Rxh3+ {[%clk 0:00:08.6]} 49. Kg1 {[%clk 0:00:01.1]} 49... Kg4 {[%clk
0:00:08.2]} 50. Rf8 {[%clk 0:00:01]} 50... Rg3+ {[%clk 0:00:07.7]} 51. Kf2
{[%clk 0:00:01.5]} 51... Rg2+ {[%clk 0:00:08.1]} 52. Kf1 {[%clk 0:00:01.3]}
52... Re2 {[%clk 0:00:07.9]} 53. Rg8+ {[%clk 0:00:01.8]} 53... Kh3 {[%clk
0:00:07.5]} 54. Rf8 {[%clk 0:00:02.7]} 54... Kg3 {[%clk 0:00:07.8]} 55. Rg8+
{[%clk 0:00:03]} 55... Kf4 {[%clk 0:00:08.3]} 56. Rf8+ {[%clk 0:00:03.5]} 56...
Ke3 {[%clk 0:00:08.5]} 57. Re8+ {[%clk 0:00:03.9]} 57... Kd3 {[%clk 0:00:06.3]}
58. Rd8+ {[%clk 0:00:04.2]} 58... Ke3 {[%clk 0:00:05.8]} 59. Re8+ {[%clk
0:00:04.6]} 59... Kd2 {[%clk 0:00:04.1]} 60. Rd8+ {[%clk 0:00:04.5]} 60... Ke3
{[%clk 0:00:04.5]} 61. Re8+ {[%clk 0:00:04.8]} 1/2-1/2

[Event "Early-Titled-Tuesday-Blitz-July-09-2024"]
[Site "Chess.com"]
[Date "2024.07.09"]
[Round "4"]
[White "kacperkarwowski"]
[Black "RandomNoob04"]
[Result "0-1"]
[WhiteElo "2547"]
[BlackElo "2761"]
[TimeControl "180+1"]
[EndTime "8:40:37 PDT"]
[Termination "RandomNoob04 won by checkmate"]

1. d4 {[%clk 0:03:00.9]} 1... Nf6 {[%clk 0:03:00.1]} 2. Nf3 {[%clk 0:03:00.5]}
2... c5 {[%clk 0:03:00.4]} 3. e3 {[%clk 0:02:59.2]} 3... g6 {[%clk 0:03:00.6]}
4. b3 {[%clk 0:02:58.8]} 4... cxd4 {[%clk 0:02:59.8]} 5. exd4 {[%clk 0:02:55.5]}
5... d5 {[%clk 0:03:00.5]} 6. Be2 {[%clk 0:02:54.4]} 6... Bg7 {[%clk 0:03:01.1]}
7. O-O {[%clk 0:02:54.6]} 7... O-O {[%clk 0:03:02]} 8. c4 {[%clk 0:02:54.2]}
8... Nc6 {[%clk 0:03:02.6]} 9. Be3 {[%clk 0:02:53]} 9... Ng4 {[%clk 0:02:56.6]}
10. Nc3 {[%clk 0:02:47]} 10... Nxe3 {[%clk 0:02:50.1]} 11. fxe3 {[%clk
0:02:47.1]} 11... dxc4 {[%clk 0:02:50.7]} 12. bxc4 {[%clk 0:02:44.4]} 12... Bg4
{[%clk 0:02:48.6]} 13. Kh1 {[%clk 0:02:35.4]} 13... Qa5 {[%clk 0:02:41.2]} 14.
Qb3 {[%clk 0:02:24.5]} 14... Bh6 {[%clk 0:01:23.7]} 15. Nd5 {[%clk 0:02:17.7]}
15... Rab8 {[%clk 0:01:12.5]} 16. h3 {[%clk 0:02:10.4]} 16... Be6 {[%clk
0:01:12.8]} 17. e4 {[%clk 0:01:58.6]} 17... Bg7 {[%clk 0:01:07.3]} 18. Rad1
{[%clk 0:01:52.9]} 18... Bd7 {[%clk 0:00:59.1]} 19. e5 {[%clk 0:01:42.7]} 19...
Bf5 {[%clk 0:00:50.9]} 20. Nh4 {[%clk 0:01:24.9]} 20... Be6 {[%clk 0:00:47.3]}
21. Nf3 {[%clk 0:01:20.7]} 21... Rfd8 {[%clk 0:00:46.3]} 22. Nf4 {[%clk
0:01:02.7]} 22... Bf5 {[%clk 0:00:42.4]} 23. Qe3 {[%clk 0:00:34.1]} 23... Qxa2
{[%clk 0:00:28]} 24. d5 {[%clk 0:00:28.7]} 24... Nb4 {[%clk 0:00:26.4]} 25. Nd4
{[%clk 0:00:25.1]} 25... Nc2 {[%clk 0:00:26.3]} 26. Nxc2 {[%clk 0:00:25.3]}
26... Qxc2 {[%clk 0:00:27.2]} 27. Bd3 {[%clk 0:00:07.2]} 27... Bxd3 {[%clk
0:00:26.5]} 28. Qxd3 {[%clk 0:00:08.1]} 28... Qxd3 {[%clk 0:00:23.7]} 29. Nxd3
{[%clk 0:00:09]} 29... b5 {[%clk 0:00:22.4]} 30. c5 {[%clk 0:00:03.5]} 30...
Rxd5 {[%clk 0:00:22.1]} 31. Nb4 {[%clk 0:00:03.8]} 31... Rxd1 {[%clk 0:00:20]}
32. Rxd1 {[%clk 0:00:04.7]} 32... Rc8 {[%clk 0:00:19.8]} 33. c6 {[%clk
0:00:04.7]} 33... Bxe5 {[%clk 0:00:20.3]} 34. Nd5 {[%clk 0:00:04.8]} 34... Bd6
{[%clk 0:00:20.8]} 35. c7 {[%clk 0:00:03.7]} 35... Kf8 {[%clk 0:00:20.2]} 36.
Rb1 {[%clk 0:00:03.5]} 36... b4 {[%clk 0:00:18.6]} 37. Nxb4 {[%clk 0:00:03.3]}
37... Bxb4 {[%clk 0:00:18.7]} 38. Rxb4 {[%clk 0:00:02.9]} 38... Rxc7 {[%clk
0:00:19.3]} 39. Rb8+ {[%clk 0:00:03.4]} 39... Kg7 {[%clk 0:00:19.7]} 40. Ra8
{[%clk 0:00:03.7]} 40... e5 {[%clk 0:00:19.6]} 41. Kg1 {[%clk 0:00:03.9]} 41...
f5 {[%clk 0:00:19.6]} 42. Kf2 {[%clk 0:00:04.8]} 42... e4 {[%clk 0:00:20.3]} 43.
Ke3 {[%clk 0:00:04.9]} 43... Kf6 {[%clk 0:00:21]} 44. h4 {[%clk 0:00:04.8]}
44... Ke5 {[%clk 0:00:19.9]} 45. Re8+ {[%clk 0:00:04.9]} 45... Kd6 {[%clk
0:00:20.3]} 46. Rh8 {[%clk 0:00:04.9]} 46... Kc5 {[%clk 0:00:18.8]} 47. h5
{[%clk 0:00:05.4]} 47... gxh5 {[%clk 0:00:18.3]} 48. Rf8 {[%clk 0:00:05.6]}
48... a5 {[%clk 0:00:17.7]} 49. Rxf5+ {[%clk 0:00:05.9]} 49... Kb4 {[%clk
0:00:18.4]} 50. Rxh5 {[%clk 0:00:06.1]} 50... a4 {[%clk 0:00:18.8]} 51. Rh6
{[%clk 0:00:02.3]} 51... Ra7 {[%clk 0:00:17.4]} 52. Rb6+ {[%clk 0:00:01.9]}
52... Kc5 {[%clk 0:00:16.5]} 53. Rb1 {[%clk 0:00:02.5]} 53... a3 {[%clk
0:00:17]} 54. Kxe4 {[%clk 0:00:02.4]} 54... a2 {[%clk 0:00:17.6]} 55. Ra1 {[%clk
0:00:03]} 55... Kc4 {[%clk 0:00:18.2]} 56. g4 {[%clk 0:00:03.5]} 56... Kb3
{[%clk 0:00:18.7]} 57. Kf5 {[%clk 0:00:03.9]} 57... Kb2 {[%clk 0:00:19.1]} 58.
Rh1 {[%clk 0:00:04.4]} 58... a1=Q {[%clk 0:00:19.3]} 59. Rxa1 {[%clk 0:00:05]}
59... Kxa1 {[%clk 0:00:20.2]} 60. Kg5 {[%clk 0:00:05.5]} 60... Kb2 {[%clk
0:00:20.6]} 61. Kh6 {[%clk 0:00:06.1]} 61... Kc3 {[%clk 0:00:21.1]} 62. g5
{[%clk 0:00:07]} 62... Kd4 {[%clk 0:00:21.3]} 63. g6 {[%clk 0:00:07.1]} 63...
hxg6 {[%clk 0:00:22.2]} 64. Kxg6 {[%clk 0:00:07.4]} 64... Ke5 {[%clk 0:00:23.1]}
65. Kh6 {[%clk 0:00:06.7]} 65... Kf5 {[%clk 0:00:23.3]} 66. Kh5 {[%clk
0:00:05.1]} 66... Rh7# {[%clk 0:00:24.2]} 0-1